fUSD/lending_fUSD_20250322
["ID","MTS","AMOUNT","RATE_DAILY","PERIOD"]
[356553492,1742649062223,-500.0,0.00049041,100]
[356553493,1742649062233,-500.0,0.00049041,120]
[356553494,1742649062242,-500.0,0.00049041,120]
[356553495,1742649062253,-500.0,0.00049041,120]
[356553496,1742649062262,-924.8,0.00049041,120]
[356553497,1742649062271,-500.0,0.00049041,120]
[356553498,1742649062281,-795.72,0.00049041,120]
[356553499,1742649062290,-500.0,0.00049041,120]
[356553500,1742649062300,-578.9,0.00049041,120]
[356553501,1742649062309,-500.0,0.00049041,120]
[356553502,1742649062322,-500.0,0.00049041,120]
[356553503,1742649062333,-500.0,0.00049041,120]
[356553504,1742649062343,-500.0,0.00049041,120]
[356553505,1742649062353,-14463.29,0.00049041,120]
[356553506,1742649062363,-500.0,0.00049041,7]
[356553507,1742649062372,-500.0,0.00049041,120]
[356553508,1742649062382,-500.0,0.00049041,120]
[356553509,1742649062391,-500.0,0.00049041,120]
[356553510,1742649062400,-500.0,0.00049041,120]
[356553511,1742649062409,-1080.15,0.00049041,120]
[356553512,1742649062419,-500.0,0.00049041,120]
[356553513,1742649062429,-500.0,0.00049041,120]
[356553514,1742649062439,-1312.28,0.00049041,120]
[356553515,1742649062448,-500.0,0.00049041,120]
[356553516,1742649062457,-517.64,0.00049041,120]
[356553517,1742649062467,-500.0,0.00049041,120]
[356553518,1742649062477,-500.0,0.00049041,120]
[356553519,1742649062487,-500.0,0.00049041,120]
[356553520,1742649062497,-597.79,0.00049041,120]
[356553521,1742649062506,-500.0,0.00049041,120]
[356553522,1742649062516,-500.0,0.00049041,120]
[356553523,1742649062525,-500.0,0.00049041,120]
[356553524,1742649062535,-500.0,0.00049041,120]
[356553525,1742649062545,-1657.09,0.00049041,120]
[356553526,1742649062554,-500.0,0.00049041,120]
[356553527,1742649062564,-500.0,0.00049041,120]
[356553528,1742649062574,-500.0,0.00049041,120]
[356553529,1742649062583,-1270.91,0.00049041,120]
[356553530,1742649062593,-766.24,0.00049041,120]
[356553531,1742649062603,-500.0,0.00049041,120]
[356553532,1742649062614,-500.0,0.00049041,120]
[356553533,1742649062623,-817.98,0.00049041,120]
[356553534,1742649062633,-504.5,0.00049041,120]
[356553535,1742649062642,-500.0,0.00049041,120]
[356553536,1742649062651,-500.0,0.00049041,120]
[356553537,1742649062661,-629.6235814,0.00049041,7]
[356553538,1742649062670,-560.93,0.00049041,120]
[356553539,1742649062679,-835.34,0.00049041,120]
[356553540,1742649062689,-500.0,0.00049041,120]
[356553541,1742649062699,-547.63,0.00049041,120]
[356553542,1742649062708,-500.0,0.00049041,120]
[356553543,1742649062718,-386.22503185,0.00049041,120]
[356553544,1742649062731,-500.0,0.00049041,120]
[356553545,1742649062740,-1029.56,0.00049041,2]
[356553546,1742649062750,-500.0,0.00049041,120]
[356553547,1742649062759,-1943.9,0.00049041,120]
[356553548,1742649062769,-668.58,0.00049041,120]
[356553549,1742649062778,-820.35,0.00049041,120]
[356553550,1742649062788,-500.0,0.00049041,120]
[356553551,1742649062797,-11776.43118902,0.00049267,15]
[356553552,1742649062807,-7514.5757889,0.00049281,2]
[356553553,1742649062818,-2492.6854774,0.00049281,2]
[356553554,1742649062827,-297.5023659,0.00049281,2]
[356553555,1742649062836,-500.0,0.00049315,10]
[356553556,1742649062846,-500.0,0.00049315,120]
[356553557,1742649062855,-551.51,0.00049315,120]
[356553558,1742649062864,-537.26,0.00049315,120]
[356553559,1742649062874,-503.63,0.00049315,120]
[356553560,1742649062884,-500.0,0.00049315,120]
[356553561,1742649062894,-500.0,0.00049315,120]
[356553562,1742649062904,-2379.23,0.00049315,120]
[356553563,1742649062913,-408.44,0.00049315,120]
[356553564,1742649062923,-500.0,0.00049315,120]
[356553565,1742649062934,-436.13112099,0.00049315,120]
[356553566,1742649062945,-500.0,0.00049315,120]
[356553567,1742649062955,-500.0,0.00049315,120]
[356553568,1742649062965,-409.56505251,0.00049315,120]
[356553569,1742649062975,-500.0,0.00049315,120]
[356553570,1742649062985,-585.5298039,0.00049315,120]
[356553571,1742649062995,-500.0,0.00049315,120]
[356553572,1742649063005,-500.0,0.00049315,120]
[356553573,1742649063015,-500.0,0.00049315,120]
[356553574,1742649063024,-348.24140611,0.00049315,120]
[356553575,1742649063033,-565.57495375,0.00049315,120]
[356553576,1742649063043,-825.45,0.00049315,120]
[356553577,1742649063053,-500.0,0.00049315,2]
[356553578,1742649063064,-604.57,0.00049315,120]
[356553579,1742649063074,-1019.03,0.00049315,120]
[356553580,1742649063084,-260.70632128,0.00049315,120]
[356553581,1742649063094,-500.0,0.00049315,120]
[356553582,1742649063104,-575.32,0.00049315,120]
[356553583,1742649063114,-500.0,0.00049315,120]
[356553584,1742649063124,-500.0,0.00049315,120]
[356553585,1742649063134,-517.96,0.00049315,120]
[356553586,1742649063144,-500.0,0.00049315,120]
[356553587,1742649063154,-500.0,0.00049315,120]
[356553588,1742649063164,-500.0,0.00049315,120]
[356553589,1742649063174,-500.0,0.00049315,120]
[356553590,1742649063184,-536.98,0.00049315,120]
[356553591,1742649063193,-500.0,0.00049315,120]
[356553592,1742649063204,-500.0,0.00049315,120]
[356553593,1742649063214,-500.0,0.00049315,120]
[356553594,1742649063224,-1229.96,0.00049315,120]
[356553595,1742649063234,-688.86,0.00049315,120]
[356553596,1742649063244,-500.0,0.00049315,120]
[356553597,1742649063254,-500.0,0.00049315,100]
[356553598,1742649063265,-500.0,0.00049315,120]
[356553599,1742649063275,-500.0,0.00049315,120]
[356553600,1742649063285,-290.78573069,0.00049315,120]
[356553601,1742649063294,-924.8,0.00049315,120]
[356553602,1742649063304,-500.0,0.00049315,120]
[356553603,1742649063314,-795.72,0.00049315,120]
[356553604,1742649063324,-500.0,0.00049315,120]
[356553605,1742649063333,-578.9,0.00049315,120]
[356553606,1742649063343,-500.0,0.00049315,120]
[356553607,1742649063353,-500.0,0.00049315,120]
[356553608,1742649063362,-500.0,0.00049315,120]
[356553609,1742649063373,-500.0,0.00049315,120]
[356553610,1742649063383,-14463.29,0.00049315,120]
[356553611,1742649063393,-500.0,0.00049315,7]
[356553612,1742649063403,-500.0,0.00049315,120]
[356553613,1742649063412,-500.0,0.00049315,120]
[356553614,1742649063422,-500.0,0.00049315,120]
[356553615,1742649063431,-500.0,0.00049315,120]
[356553616,1742649063441,-1080.15,0.00049315,120]
[356553617,1742649063451,-500.0,0.00049315,120]
[356553618,1742649063460,-500.0,0.00049315,120]
[356553619,1742649063470,-1312.28,0.00049315,120]
[356553620,1742649063479,-500.0,0.00049315,120]
[356553621,1742649063489,-517.64,0.00049315,120]
[356553622,1742649063499,-500.0,0.00049315,120]
[356553623,1742649063509,-369.00778114,0.00049315,120]
[356553624,1742649063518,-509.66552152,0.00049315,120]
[356553625,1742649063528,-597.79,0.00049315,120]
[356553626,1742649063537,-500.0,0.00049315,120]
[356553627,1742649063546,-500.0,0.00049315,120]
[356553628,1742649063555,-186.35793788,0.00049315,120]
[356553629,1742649063565,-500.0,0.00049315,120]
[356553630,1742649063575,-1657.09,0.00049315,120]
[356553631,1742649063584,-500.0,0.00049315,120]
[356553632,1742649063593,-500.0,0.00049315,120]
[356553633,1742649063603,-636.58022742,0.00049315,120]
[356553634,1742649063613,-1270.91,0.00049315,120]
[356553635,1742649063622,-766.24,0.00049315,120]
[356553636,1742649063632,-500.0,0.00049315,120]
[356553637,1742649063642,-500.0,0.00049315,120]
[356553638,1742649063651,-817.98,0.00049315,120]
[356553639,1742649063660,-504.5,0.00049315,120]
[356553640,1742649063669,-500.0,0.00049315,120]
[356553641,1742649063679,-500.0,0.00049315,120]
[356553642,1742649063688,-560.93,0.00049315,120]
[356553643,1742649063698,-835.34,0.00049315,120]
[356553644,1742649063707,-500.0,0.00049315,120]
[356553645,1742649063717,-547.63,0.00049315,120]
[356553646,1742649063729,-500.0,0.00049315,120]
[356553647,1742649063739,-500.0,0.00049315,120]
[356553648,1742649063748,-1029.56,0.00049315,2]
[356553649,1742649063758,-500.0,0.00049315,120]
[356553650,1742649063769,-1943.9,0.00049315,120]
[356553651,1742649063779,-668.58,0.00049315,120]
[356553652,1742649063789,-820.35,0.00049315,120]
[356553653,1742649063798,-500.0,0.00049315,120]
[356553654,1742649063809,-154.42,0.000494,45]
[356553655,1742649063819,-154.42,0.000494,45]
[356553656,1742649063829,-500.0,0.00049589,10]
[356553657,1742649063838,-316.08397585,0.00049589,120]
[356553658,1742649063848,-551.51,0.00049589,120]
[356553659,1742649063858,-537.26,0.00049589,120]
[356553660,1742649063868,-503.63,0.00049589,120]
[356553661,1742649063878,-340.26678414,0.00049589,120]
[356553662,1742649063887,-500.0,0.00049589,120]
[356553663,1742649063897,-2379.23,0.00049589,120]
[356553664,1742649063907,-500.0,0.00049589,120]
[356553665,1742649063917,-500.0,0.00049589,120]
[356553666,1742649063927,-281.04286164,0.00049589,120]
[356553667,1742649063937,-500.0,0.00049589,120]
[356553668,1742649063947,-500.0,0.00049589,120]
[356553669,1742649063956,-500.0,0.00049589,120]
[356553670,1742649063966,-500.0,0.00049589,120]
[356553671,1742649063975,-825.45,0.00049589,120]
[356553672,1742649063985,-500.0,0.00049589,2]
[356553673,1742649063993,-604.57,0.00049589,120]
[356553674,1742649064003,-1019.03,0.00049589,120]
[356553675,1742649064013,-500.0,0.00049589,120]
[356553676,1742649064023,-500.0,0.00049589,120]
[356553677,1742649064032,-575.32,0.00049589,120]
[356553678,1742649064041,-228.39559418,0.00049589,120]
[356553679,1742649064051,-517.96,0.00049589,120]
[356553680,1742649064061,-500.0,0.00049589,120]
[356553681,1742649064071,-500.0,0.00049589,120]
[356553682,1742649064081,-500.0,0.00049589,120]
[356553683,1742649064090,-500.0,0.00049589,120]
[356553684,1742649064100,-536.98,0.00049589,120]
[356553685,1742649064110,-242.04628905,0.00049589,120]
[356553686,1742649064119,-421.21278834,0.00049589,120]
[356553687,1742649064129,-499.9268083,0.00049589,120]
[356553688,1742649064138,-1229.96,0.00049589,120]
[356553689,1742649064148,-688.86,0.00049589,120]
[356553690,1742649064158,-500.0,0.00049589,120]
[356553691,1742649064168,-500.0,0.00049589,100]
[356553692,1742649064177,-480.19261175,0.00049589,120]
[356553693,1742649064187,-500.0,0.00049589,120]
[356553694,1742649064196,-924.8,0.00049589,120]
[356553695,1742649064206,-500.0,0.00049589,120]
[356553696,1742649064216,-795.72,0.00049589,120]
[356553697,1742649064225,-500.0,0.00049589,120]
[356553698,1742649064235,-578.9,0.00049589,120]
[356553699,1742649064245,-500.0,0.00049589,120]
[356553700,1742649064254,-500.0,0.00049589,120]
[356553701,1742649064263,-500.0,0.00049589,120]
[356553702,1742649064389,-393.10952262,0.00049589,120]
[356553703,1742649064399,-14463.29,0.00049589,120]
[356553704,1742649064408,-500.0,0.00049589,7]
[356553705,1742649064418,-341.15092068,0.00049589,120]
[356553706,1742649064427,-500.0,0.00049589,120]
[356553707,1742649064436,-500.0,0.00049589,120]
[356553708,1742649064445,-500.0,0.00049589,120]
[356553709,1742649064455,-1080.15,0.00049589,120]
[356553710,1742649064465,-500.0,0.00049589,120]
[356553711,1742649064474,-500.0,0.00049589,120]
[356553712,1742649064483,-1312.28,0.00049589,120]
[356553713,1742649064492,-500.0,0.00049589,120]
[356553714,1742649064501,-517.64,0.00049589,120]
[356553715,1742649064510,-165.77198023,0.00049589,120]
[356553716,1742649064519,-597.79,0.00049589,120]
[356553717,1742649064528,-500.0,0.00049589,120]
[356553718,1742649064537,-397.08468592,0.00049589,120]
[356553719,1742649064547,-500.0,0.00049589,120]
[356553720,1742649064556,-500.0,0.00049589,120]
[356553721,1742649064566,-1657.09,0.00049589,120]
[356553722,1742649064575,-500.0,0.00049589,120]
[356553723,1742649064584,-1270.91,0.00049589,120]
[356553724,1742649064594,-766.24,0.00049589,120]
[356553725,1742649064603,-187.78708241,0.00049589,120]
[356553726,1742649064612,-500.0,0.00049589,120]
[356553727,1742649064623,-817.98,0.00049589,120]
[356553728,1742649064632,-504.5,0.00049589,120]
[356553729,1742649064641,-500.0,0.00049589,120]
[356553730,1742649064650,-500.0,0.00049589,120]
[356553731,1742649064659,-560.93,0.00049589,120]
[356553732,1742649064669,-835.34,0.00049589,120]
[356553733,1742649064679,-500.0,0.00049589,120]
[356553734,1742649064688,-547.63,0.00049589,120]
[356553735,1742649064698,-468.27713489,0.00049589,120]
[356553736,1742649064707,-500.0,0.00049589,120]
[356553737,1742649064716,-1029.56,0.00049589,2]
[356553738,1742649064727,-500.0,0.00049589,120]
[356553739,1742649064738,-1943.9,0.00049589,120]
[356553740,1742649064748,-668.58,0.00049589,120]
[356553741,1742649064757,-820.35,0.00049589,120]
[356553742,1742649064766,-500.0,0.00049589,120]
[356553743,1742649064776,-5723.53611757,0.000498,120]
[356553744,1742649064785,-500.0,0.00049863,10]
[356553745,1742649064794,-551.51,0.00049863,120]
[356553746,1742649064806,-537.26,0.00049863,120]
[356553747,1742649064815,-503.63,0.00049863,120]
[356553748,1742649064825,-500.0,0.00049863,120]
[356553749,1742649064834,-2379.23,0.00049863,120]
[356553750,1742649064843,-632.68616675,0.00049863,120]
[356553751,1742649064853,-500.0,0.00049863,120]
[356553752,1742649064862,-539.17174013,0.00049863,120]
[356553753,1742649064871,-500.0,0.00049863,120]
[356553754,1742649064881,-500.0,0.00049863,120]
[356553755,1742649064890,-500.0,0.00049863,120]
[356553756,1742649064899,-825.45,0.00049863,120]
[356553757,1742649064908,-500.0,0.00049863,2]
[356553758,1742649064917,-604.57,0.00049863,120]
[356553759,1742649064927,-1019.03,0.00049863,120]
[356553760,1742649064938,-500.0,0.00049863,120]
[356553761,1742649064949,-500.0,0.00049863,120]
[356553762,1742649064960,-575.32,0.00049863,120]
[356553763,1742649064970,-517.96,0.00049863,120]
[356553764,1742649064980,-500.0,0.00049863,120]
[356553765,1742649064989,-500.0,0.00049863,120]
[356553766,1742649064999,-500.0,0.00049863,120]
[356553767,1742649065010,-500.0,0.00049863,120]
[356553768,1742649065022,-536.98,0.00049863,120]
[356553769,1742649065031,-1229.96,0.00049863,120]
[356553770,1742649065041,-688.86,0.00049863,120]
[356553771,1742649065051,-500.0,0.00049863,120]
[356553772,1742649065060,-500.0,0.00049863,100]
[356553773,1742649065070,-500.0,0.00049863,120]
[356553774,1742649065079,-924.8,0.00049863,120]
[356553775,1742649065088,-500.0,0.00049863,120]
[356553776,1742649065098,-795.72,0.00049863,120]
[356553777,1742649065107,-500.0,0.00049863,120]
[356553778,1742649065116,-578.9,0.00049863,120]
[356553779,1742649065125,-500.0,0.00049863,120]
[356553780,1742649065134,-500.0,0.00049863,120]
[356553781,1742649065143,-500.0,0.00049863,120]
[356553782,1742649065152,-14463.29,0.00049863,120]
[356553783,1742649065161,-500.0,0.00049863,7]
[356553784,1742649065170,-500.0,0.00049863,120]
[356553785,1742649065179,-500.0,0.00049863,120]
[356553786,1742649065189,-1080.15,0.00049863,120]
[356553787,1742649065198,-500.0,0.00049863,120]
[356553788,1742649065207,-500.0,0.00049863,120]
[356553789,1742649065216,-500.0,0.00049863,120]
[356553790,1742649065226,-1312.28,0.00049863,120]
[356553791,1742649065235,-500.0,0.00049863,120]
[356553792,1742649065245,-517.64,0.00049863,120]
[356553793,1742649065254,-597.79,0.00049863,120]
[356553794,1742649065263,-500.0,0.00049863,120]
[356553795,1742649065274,-500.0,0.00049863,120]
[356553796,1742649065283,-500.0,0.00049863,120]
[356553797,1742649065293,-1657.09,0.00049863,120]
[356553798,1742649065302,-500.0,0.00049863,120]
[356553799,1742649065312,-1270.91,0.00049863,120]
[356553800,1742649065322,-766.24,0.00049863,120]
[356553801,1742649065333,-500.0,0.00049863,120]
[356553802,1742649065342,-817.98,0.00049863,120]
[356553803,1742649065351,-504.5,0.00049863,120]
[356553804,1742649065361,-500.0,0.00049863,120]
[356553805,1742649065370,-500.0,0.00049863,120]
[356553806,1742649065379,-560.93,0.00049863,120]
[356553807,1742649065388,-835.34,0.00049863,120]
[356553808,1742649065397,-500.0,0.00049863,120]
[356553809,1742649065407,-547.63,0.00049863,120]
[356553810,1742649065417,-500.0,0.00049863,120]
[356553811,1742649065426,-1029.56,0.00049863,2]
[356553812,1742649065436,-500.0,0.00049863,120]
[356553813,1742649065447,-1943.9,0.00049863,120]
[356553814,1742649065456,-668.58,0.00049863,120]
[356553815,1742649065466,-820.35,0.00049863,120]
[356553816,1742649065476,-500.0,0.00049863,120]
[356553817,1742649065485,-158.17,0.000499,120]
[356553818,1742649065495,-157.8357366,0.000499,120]
[356553819,1742649065504,-157.8357366,0.000499,120]
[356553820,1742649065513,-157.8357366,0.000499,120]
[356553821,1742649065522,-157.8357366,0.000499,120]
[356553822,1742649065532,-157.8357366,0.000499,120]
[356553823,1742649065542,-157.8357366,0.000499,120]
[356553824,1742649065553,-157.8357366,0.000499,120]
[356553825,1742649065563,-157.8357366,0.000499,120]
[356553826,1742649065572,-157.8357366,0.000499,120]
[356553827,1742649065581,-157.8357366,0.000499,120]
[356553828,1742649065590,-157.8357366,0.000499,120]
[356553829,1742649065600,-157.8357366,0.000499,120]
[356553830,1742649065609,-157.8357366,0.000499,120]
[356553831,1742649065619,-157.8357366,0.000499,120]
[356553832,1742649065629,-157.8357366,0.000499,120]
[356553833,1742649065638,-157.8357366,0.000499,120]
[356553834,1742649065647,-157.8357366,0.000499,120]
[356553835,1742649065656,-157.8357366,0.000499,120]
[356553836,1742649065665,-157.83,0.000499,120]
[356553837,1742649065675,-160.0547307,0.000499,120]
[356553838,1742649065686,-160.0547307,0.000499,120]
[356553839,1742649065696,-160.0547307,0.000499,120]
[356553840,1742649065707,-160.0547307,0.000499,120]
[356553841,1742649065718,-160.0547307,0.000499,120]
[356553842,1742649065733,-160.0547307,0.000499,120]
[356553843,1742649065744,-160.0547307,0.000499,120]
[356553844,1742649065754,-160.05,0.000499,120]
[356553845,1742649065764,-11776.43118902,0.000499,15]
[356553846,1742649065774,-600.0,0.000499,18]
[356553847,1742649065783,-6113.1050875,0.00049966,2]
[356553848,1742649065792,-4711.6343862,0.00049966,2]
[356553849,1742649065802,-2027.7988674,0.00049966,2]
[356553850,1742649065812,-1562.9122573,0.00049966,2]
[356553851,1742649065821,-297.5023659,0.00049966,2]
[356553852,1742649065831,-297.5023659,0.00049966,2]
[356553853,1742649065840,-3216.71248294,0.00049972,120]
[356553854,1742649065849,-50000.0,0.0005,50]
[356553855,1742649065858,-40779.56044371,0.0005,120]
[356553856,1742649066156,-500.0,0.00046575,120]
[356553857,1742649066166,-500.0,0.00046849,120]
[356553858,1742649066176,-500.0,0.00047123,120]
[356553859,1742649066186,-500.0,0.00047671,120]
[356553860,1742649066195,-500.0,0.00047945,120]
[356553861,1742649066205,-500.0,0.00048219,120]
[356553862,1742649066214,-500.0,0.00048493,120]
[356553863,1742649066224,-500.0,0.00048767,120]
[356553864,1742649066233,-500.0,0.00049041,120]
[356553865,1742649066243,-615.05368202,0.00049315,120]
[356553866,1742649066255,-1747.22664413,0.0005,120]
[356553867,1742649066268,-3589.03212535,0.0005,120]
[356553868,1742649066279,-408.72323362,0.0005,120]
[356553899,1742649908652,155.04501801,0.00031612,30]
[356553900,1742649936798,1361.43329372,8e-05,2]
[356553903,1742650079223,1762.33507698,0.0001,2]
[356553904,1742650079250,3273.7683707,0.0001,2]
[356553905,1742650079275,3273.7683707,0.0001,2]
[356553906,1742650079302,3273.7683707,0.0001,2]
[356553907,1742650079327,3273.7683707,0.0001,2]
[356553908,1742650079352,3273.7683707,0.0001,2]
[356553909,1742650079378,3273.7683707,0.0001,2]
[356553910,1742650079404,3273.7683707,0.0001,2]
[356553911,1742650079429,3273.7683707,0.0001,2]
[356553912,1742650079455,3273.7683707,0.0001,2]
[356553916,1742650134787,-1102.32404239,9.99e-05,2]
[356553918,1742650134821,-4104.51841642,0.0001,2]
[356553924,1742650147753,-643.31,0.0001,2]
[356553937,1742650149291,-245.23954765,0.0001,2]
[356553955,1742650156500,-215.50537936,0.0001,2]
[356553969,1742650159243,-215.53962064,0.0001,2]
[356553985,1742650232147,-150.0,9.999e-05,2]
[356553986,1742650232157,-1427.36276331,0.0001,2]
[356553987,1742650232170,-28074.92304979,0.0001,2]
[356553988,1742650232263,-365.253643,0.0001,2]
[356553989,1742650232274,-419.1581491,0.0001,2]
[356553990,1742650232285,-475.49962009,0.0001,2]
[356553991,1742650232322,-9172.41120195,0.0001,2]
[356553992,1742650232384,-4522.01405745,0.0001,2]
[356553993,1742650232396,-5757.32547878,0.0001,2]
[356553994,1742650232444,-1681.21549141,0.0001,2]
[356553995,1742650232455,-665.2855,0.0001,2]
[356553996,1742650232467,-1050.0,0.0001,2]
[356553997,1742650232478,-32656.59983472,0.0001,2]
[356553998,1742650232488,-150.0,0.00010999,2]
[356553999,1742650232497,-166.13,0.00026849,2]
[356554000,1742650232507,-151.1,0.00026849,2]
[356554001,1742650232516,-200.96351691,0.000313,6]
[356554002,1742650232525,-431.045,0.00039936,2]
[356554003,1742650232535,-181.7877,0.000441,2]
[356554004,1742650232545,-305.3513,0.000441,2]
[356554005,1742650232554,-812.0736,0.0004419,2]
[356554006,1742650232564,-411.31,0.00044303,2]
[356554007,1742650232573,-215.50537936,0.00044424,2]
[356554008,1742650232583,-451.06146934,0.00044424,2]
[356554009,1742650232593,-3640.98836494,0.00044424,2]
[356554010,1742650232605,-243.72197604,0.00044424,2]
[356554011,1742650232615,-8128.71,0.00044424,2]
[356554012,1742650232625,-236.02645424,0.00044473,10]
[356554013,1742650232635,-164.58670162,0.00044473,7]
[356554014,1742650232648,-161.15062547,0.00044499,120]
[356554015,1742650232658,-310.93525145,0.00044499,120]
[356554016,1742650232667,-291.25918839,0.000445,61]
[356554017,1742650232677,-85004.8704448,0.000445,39]
[356554018,1742650232686,-40612.37141272,0.000445,120]
[356554019,1742650232698,-864.56962745,0.000445,120]
[356554020,1742650232714,-596.33269056,0.000445,120]
[356554021,1742650232726,-1850.45,0.000445,120]
[356554022,1742650232738,-914.09130211,0.000445,120]
[356554023,1742650232749,-275.62899589,0.000445,120]
[356554034,1742650238066,-397.37,0.00044424,20]
[356554035,1742650238076,-1882.44242233,0.000445,120]
[356554036,1742650238088,-379.06340355,0.000445,120]
[356554037,1742650238124,-64687.35325496,0.000445,120]
[356554038,1742650238184,-19387.13777816,0.000445,120]
[356554039,1742650238243,-2012.6,0.000445,120]
[356554040,1742650238254,-833.69583873,0.000445,120]
[356554041,1742650238302,-1771.09,0.000445,120]
[356554042,1742650238314,-252.35315091,0.000445,120]
[356554043,1742650238325,-748.72004359,0.000445,120]
[356554044,1742650238338,-1943.46898318,0.000445,120]
[356554045,1742650238349,-294.75802627,0.000445,120]
[356554046,1742650238360,-926.384535,0.000445,120]
[356554048,1742650238371,-2785.10396929,0.000445,120]
[356554050,1742650238382,-22440.46435302,0.000445,120]
[356554084,1742650240337,-5420.40601488,0.000445,120]
[356554085,1742650240349,-2414.09318498,0.000445,120]
[356554086,1742650240397,-482.30682496,0.000445,120]
[356554087,1742650240569,-781813.04692566,0.000445,120]
[356554088,1742650240618,-584.83053733,0.000445,120]
[356554091,1742650243338,-699.5899999,0.000445,120]
[356554092,1742650243351,-424.49932413,0.000445,120]
[356554093,1742650243365,-464.8209305,0.000445,120]
[356554094,1742650243378,-66657.64910273,0.000445,120]
[356554095,1742650243390,-25186.3396482,0.000445,120]
[356554096,1742650243406,-968.21183023,0.000445,120]
[356554097,1742650243459,-5434.32,0.000445,120]
[356554101,1742650246338,-9028.3,0.000445,120]
[356554102,1742650246400,-8326.87541704,0.000445,120]
[356554103,1742650246574,-10803.98371575,0.000445,120]
[356554104,1742650246639,-4281.0951,0.000445,120]
[356554105,1742650246652,-659.062,0.000445,120]
[356554114,1742650428602,-160.0,0.0004445,120]
[356554115,1742650432369,-250.01656051,0.0004445,120]
[356554130,1742650660253,-281.61309658,0.00041622,2]
[356554137,1742651162716,-300.0,0.00034573,30]
[356554138,1742651223050,2523.16709544,0.00031588,120]
[356554149,1742651368198,-50.0,0.00034573,30]
[356554150,1742651368224,-122.92462719,0.000379,5]
[356554155,1742651432322,-166.808309,0.0003771,4]
[356554156,1742651432331,-350.0,0.00037805,30]
[356554157,1742651432341,-128.54688665,0.000379,5]
[356554158,1742651432352,-48.45311335,0.000379,5]
[356554159,1742651432362,-350.0,0.0003803,30]
[356554160,1742651432371,-398.44104968,0.00041,30]
[356554161,1742651432382,-268.18822987,0.00041,30]
[356554162,1742651432403,-725.97687656,0.00041,30]
[356554163,1742651432564,-984.4321317,0.00041,30]
[356554164,1742651432574,-150.0,0.00041311,2]
[356554165,1742651432583,-350.0,0.00041481,30]
[356554166,1742651432592,-184.71863301,0.0004162,2]
[356554167,1742651432603,-193.99690342,0.00041622,2]
[356554168,1742651432612,-151.49,0.00042727,2]
[356554169,1742651432621,-150.53937916,0.00042727,15]
[356554170,1742651432633,-6894.08062084,0.00042727,15]
[356554171,1742651432642,-353.89,0.00042914,120]
[356554172,1742651432653,-155.0,0.00043109,2]
[356554173,1742651432663,-150.0,0.0004313,7]
[356554174,1742651432673,-155.0,0.000433,2]
[356554175,1742651432683,-265.36,0.00043377,2]
[356554176,1742651432692,-1000.0,0.00043424,2]
[356554177,1742651432702,-155.0,0.00043492,2]
[356554178,1742651432712,-150.0,0.00043559,2]
[356554179,1742651432721,-579.183,0.00043618,68]
[356554180,1742651432731,-150.0,0.00043618,4]
[356554181,1742651432741,-482.0,0.00043618,5]